fUST/lending_fUST_20260107
["ID","MTS","AMOUNT","RATE_DAILY","PERIOD"]
[400726749,1767801042371,-151.0,0.00026027,7]
[400726750,1767801042380,-151.0,0.00026027,7]
[400726751,1767801042390,-151.0,0.00026027,7]
[400726752,1767801042399,-151.0,0.00026027,7]
[400726753,1767801042409,-300.0,0.00026027,7]
[400726755,1767801042419,-300.0,0.00026027,7]
[400726757,1767801042428,-300.0,0.00026027,7]
[400726759,1767801042438,-300.0,0.00026027,7]
[400726761,1767801042449,-1000.0,0.000261,2]
[400726763,1767801042459,-777.0,0.000261,2]
[400726765,1767801042468,-532.78271809,0.00026113,2]
[400726767,1767801042478,-2131.13087237,0.00026113,2]
[400726769,1767801042489,-4795.04446283,0.00026113,2]
[400726771,1767801042499,-8515.99896599,0.00026113,2]
[400726773,1767801042509,-967.43187484,0.00026114,2]
[400726775,1767801042519,-3869.72749934,0.00026114,2]
[400726777,1767801042528,-8706.88687352,0.00026114,2]
[400726779,1767801042539,-168.0,0.00026249,2]
[400726782,1767801042549,-1000.0,0.00026253,7]
[400726784,1767801042559,-168.0,0.00026301,2]
[400726786,1767801042568,-450.0,0.00026301,2]
[400726788,1767801042579,-200.27131476,0.0002636,3]
[400726790,1767801042588,-347.0,0.0002636,3]
[400726792,1767801042599,-347.0,0.0002636,3]
[400726794,1767801042608,-347.0,0.0002636,3]
[400726796,1767801042618,-166.0,0.0002636,3]
[400726797,1767801042628,-347.0,0.0002636,3]
[400726799,1767801042638,-166.0,0.0002636,3]
[400726801,1767801042648,-347.0,0.0002636,3]
[400726804,1767801042658,-166.0,0.0002636,3]
[400726805,1767801042669,-347.0,0.0002636,3]
[400726808,1767801042681,-166.0,0.0002636,3]
[400726810,1767801042691,-151.0,0.0002636,3]
[400726812,1767801042701,-347.0,0.0002636,3]
[400726814,1767801042711,-336.0,0.0002636,3]
[400726816,1767801042721,-166.0,0.0002636,3]
[400726818,1767801042731,-151.0,0.0002636,3]
[400726819,1767801042740,-336.0,0.0002636,3]
[400726822,1767801042751,-347.0,0.0002636,3]
[400726824,1767801042761,-166.0,0.0002636,3]
[400726825,1767801042772,-151.0,0.0002636,3]
[400726828,1767801042782,-336.0,0.0002636,3]
[400726830,1767801042792,-151.0,0.0002636,3]
[400726832,1767801042801,-336.0,0.0002636,3]
[400726834,1767801042811,-151.0,0.0002636,3]
[400726835,1767801042822,-336.0,0.0002636,3]
[400726837,1767801042832,-347.0,0.0002636,3]
[400726839,1767801042841,-151.0,0.0002636,3]
[400726841,1767801042850,-336.0,0.0002636,3]
[400726843,1767801042860,-347.0,0.0002636,3]
[400726845,1767801042869,-336.0,0.0002636,3]
[400726847,1767801042879,-151.0,0.0002636,3]
[400726849,1767801042888,-347.0,0.0002636,3]
[400726851,1767801042898,-336.0,0.0002636,3]
[400726853,1767801042907,-151.0,0.0002636,3]
[400726855,1767801042917,-347.0,0.0002636,3]
[400726857,1767801042927,-151.0,0.0002636,3]
[400726859,1767801042936,-347.0,0.0002636,3]
[400726861,1767801042948,-336.0,0.0002636,3]
[400726863,1767801042959,-151.0,0.0002636,3]
[400726865,1767801042969,-151.0,0.0002636,3]
[400726867,1767801042979,-336.0,0.0002636,3]
[400726869,1767801042989,-151.0,0.0002636,3]
[400726871,1767801042999,-347.0,0.0002636,3]
[400726873,1767801043009,-151.0,0.0002636,3]
[400726875,1767801043018,-336.0,0.0002636,3]
[400726878,1767801043028,-151.0,0.0002636,3]
[400726880,1767801043038,-347.0,0.0002636,3]
[400726882,1767801043048,-151.0,0.0002636,3]
[400726884,1767801043058,-336.0,0.0002636,3]
[400726886,1767801043068,-151.0,0.0002636,3]
[400726888,1767801043078,-151.0,0.0002636,3]
[400726890,1767801043087,-336.0,0.0002636,3]
[400726892,1767801043097,-347.0,0.0002636,3]
[400726894,1767801043107,-151.0,0.0002636,3]
[400726896,1767801043116,-151.0,0.0002636,3]
[400726898,1767801043126,-336.0,0.0002636,3]
[400726900,1767801043136,-151.0,0.0002636,3]
[400726902,1767801043149,-347.0,0.0002636,3]
[400726904,1767801043158,-336.0,0.0002636,3]
[400726906,1767801043167,-151.0,0.0002636,3]
[400726908,1767801043178,-347.0,0.0002636,3]
[400726910,1767801043188,-336.0,0.0002636,3]
[400726912,1767801043201,-151.0,0.0002636,3]
[400726914,1767801043211,-336.0,0.0002636,3]
[400726916,1767801043221,-151.0,0.0002636,3]
[400726923,1767801043232,-347.0,0.0002636,3]
[400726925,1767801043288,-336.0,0.0002636,3]
[400726927,1767801043299,-151.0,0.0002636,3]
[400726929,1767801043309,-347.0,0.0002636,3]
[400726931,1767801043320,-336.0,0.0002636,3]
[400726933,1767801043330,-151.0,0.0002636,3]
[400726935,1767801043339,-336.0,0.0002636,3]
[400726937,1767801043349,-347.0,0.0002636,3]
[400726939,1767801043359,-151.0,0.0002636,3]
[400726941,1767801043369,-336.0,0.0002636,3]
[400726943,1767801043379,-347.0,0.0002636,3]
[400726945,1767801043389,-151.0,0.0002636,3]
[400726947,1767801043399,-336.0,0.0002636,3]
[400726949,1767801043409,-347.0,0.0002636,3]
[400726951,1767801043419,-151.0,0.0002636,3]
[400726953,1767801043429,-347.0,0.0002636,3]
[400726955,1767801043439,-151.0,0.0002636,3]
[400726958,1767801043453,-336.0,0.0002636,3]
[400726960,1767801043463,-151.0,0.0002636,3]
[400726962,1767801043473,-163.0,0.0002636,3]
[400726964,1767801043483,-151.0,0.0002636,3]
[400726966,1767801043493,-151.0,0.0002636,3]
[400726968,1767801043503,-336.0,0.0002636,3]
[400726970,1767801043513,-204.25814769,0.0002636,3]
[400726972,1767801043522,-151.0,0.0002636,3]
[400726974,1767801043532,-336.0,0.0002636,3]
[400726976,1767801043541,-347.0,0.0002636,3]
[400726978,1767801043551,-151.0,0.0002636,3]
[400726980,1767801043561,-336.0,0.0002636,3]
[400726981,1767801043570,-151.0,0.0002636,3]
[400726983,1767801043580,-347.0,0.0002636,3]
[400726986,1767801043590,-336.0,0.0002636,3]
[400726988,1767801043600,-153.05483042,0.0002636,3]
[400726990,1767801043610,-336.0,0.0002636,3]
[400726991,1767801043619,-347.0,0.0002636,3]
[400726993,1767801043629,-429.4634567,0.0002636,3]
[400726995,1767801043638,-347.0,0.0002636,3]
[400726997,1767801043648,-347.0,0.0002636,3]
[400726999,1767801043659,-347.0,0.0002636,3]
[400727001,1767801043668,-347.0,0.0002636,3]
[400727003,1767801043678,-347.0,0.0002636,3]
[400727005,1767801043687,-347.0,0.0002636,3]
[400727007,1767801043700,-347.0,0.0002636,3]
[400727009,1767801043710,-347.0,0.0002636,3]
[400727011,1767801043719,-347.0,0.0002636,3]
[400727013,1767801043729,-347.0,0.0002636,3]
[400727015,1767801043738,-347.0,0.0002636,3]
[400727017,1767801043747,-347.0,0.0002636,3]
[400727019,1767801043757,-376.65305407,0.0002636,3]
[400727021,1767801043767,-549.0,0.0002638,30]
[400727023,1767801043777,-1041.66666667,0.000264,3]
[400727025,1767801043787,-2773.56790519,0.00026437,2]
[400727027,1767801043796,-574.12855637,0.00026437,2]
[400727029,1767801043806,-3240.090056,0.00026473,2]
[400727031,1767801043816,-168.0,0.00026475,2]
[400727033,1767801043826,-1000.0,0.00026524,7]
[400727035,1767801043836,-205.72697898,0.000266,2]
[400727037,1767801043846,-1000.0,0.000266,2]
[400727039,1767801043856,-2105.18561933,0.00026689,7]
[400727041,1767801043865,-151.0,0.000267,7]
[400727043,1767801043875,-449.15,0.00026702,2]
[400727045,1767801043884,-1000.0,0.00026736,7]
[400727047,1767801043893,-339.0,0.00026779,2]
[400727049,1767801043903,-2698.132195,0.00026815,2]
[400727051,1767801043912,-654.43221432,0.00026837,2]
[400727053,1767801043921,-1000.0,0.00026841,7]
[400727055,1767801043930,-550.0,0.00026849,2]
[400727057,1767801043940,-1000.0,0.00026866,7]
[400727058,1767801043951,-171.4,0.00026891,2]
[400727061,1767801043962,-312.77,0.000269,2]
[400727063,1767801043972,-151.6,0.000269,7]
[400727064,1767801043981,-1798.754796,0.00026915,2]
[400727067,1767801043991,-595.37131296,0.00026985,2]
[400727068,1767801044000,-1041.66666667,0.0002699,7]
[400727070,1767801044009,-600.0,0.00027,14]
[400727072,1767801044018,-261657.74966145,0.00027,7]
[400727074,1767801044028,-151.0,0.00027,7]
[400727076,1767801044037,-151.0,0.00027,7]
[400727078,1767801044047,-1690.25,0.00027,14]
[400727081,1767801044056,-165.7,0.00027,7]
[400727082,1767801044065,-165.7,0.00027,7]
[400727084,1767801044075,-165.7,0.00027,7]
[400727086,1767801044084,-165.7,0.00027,7]
[400727088,1767801044093,-151.0,0.00027,7]
[400727090,1767801044102,-151.0,0.00027,7]
[400727092,1767801044111,-151.0,0.00027,7]
[400727094,1767801044120,-151.0,0.00027,7]
[400727096,1767801044130,-151.0,0.00027,7]
[400727098,1767801044143,-151.0,0.00027,7]
[400727100,1767801044152,-151.0,0.00027,7]
[400727102,1767801044162,-151.0,0.00027,7]
[400727104,1767801044173,-1356.98,0.00027,7]
[400727106,1767801044183,-151.0,0.00027,7]
[400727108,1767801044194,-151.0,0.00027,7]
[400727110,1767801044207,-151.0,0.00027,7]
[400727112,1767801044216,-173.61071177,0.00027,7]
[400727114,1767801044226,-151.0,0.00027,7]
[400727116,1767801044236,-151.0,0.00027,7]
[400727118,1767801044245,-151.0,0.00027,7]
[400727120,1767801044255,-151.0,0.00027,7]
[400727122,1767801044265,-151.0,0.00027,7]
[400727124,1767801044274,-167.619488,0.00027,7]
[400727126,1767801044283,-167.619488,0.00027,7]
[400727128,1767801044293,-167.619488,0.00027,7]
[400727130,1767801044302,-167.619488,0.00027,7]
[400727132,1767801044312,-192.80374,0.00027,7]
[400727134,1767801044321,-192.80374,0.00027,7]
[400727136,1767801044330,-151.0,0.00027,7]
[400727139,1767801044339,-192.80374,0.00027,7]
[400727142,1767801044349,-192.80374,0.00027,7]
[400727145,1767801044359,-151.0,0.00027,7]
[400727147,1767801044369,-151.0,0.00027,7]
[400727149,1767801044378,-151.0,0.00027,7]
[400727151,1767801044388,-248.286699,0.00027,7]
[400727153,1767801044397,-248.286699,0.00027,7]
[400727155,1767801044406,-248.286699,0.00027,7]
[400727157,1767801044416,-151.0,0.00027,7]
[400727159,1767801044425,-248.286699,0.00027,7]
[400727161,1767801044434,-151.0,0.00027,7]
[400727163,1767801044445,-151.0,0.00027,7]
[400727165,1767801044454,-151.0,0.00027,7]
[400727167,1767801044463,-151.0,0.00027,7]
[400727169,1767801044473,-151.0,0.00027,7]
[400727171,1767801044482,-175.703798,0.00027,7]
[400727173,1767801044491,-1301.347602,0.00027,7]
[400727175,1767801044500,-1301.347602,0.00027,7]
[400727177,1767801044509,-1301.347602,0.00027,7]
[400727179,1767801044517,-1301.347602,0.00027,7]
[400727181,1767801044526,-151.0,0.00027,7]
[400727183,1767801044536,-151.0,0.00027,7]
[400727185,1767801044545,-151.0,0.00027,7]
[400727187,1767801044555,-151.0,0.00027,7]
[400727189,1767801044564,-151.0,0.00027,7]
[400727190,1767801044573,-151.0,0.00027,7]
[400727193,1767801044582,-205.653628,0.00027,7]
[400727194,1767801044591,-151.0,0.00027,7]
[400727196,1767801044601,-151.0,0.00027,7]
[400727198,1767801044611,-999.620946,0.00027,7]
[400727200,1767801044620,-999.620946,0.00027,7]
[400727202,1767801044629,-999.620946,0.00027,7]
[400727204,1767801044639,-999.620946,0.00027,7]
[400727207,1767801044648,-151.0,0.00027,7]
[400727209,1767801044658,-151.0,0.00027,7]
[400727211,1767801044667,-151.0,0.00027,7]
[400727213,1767801044676,-304.884362,0.00027,7]
[400727215,1767801044686,-304.884362,0.00027,7]
[400727216,1767801044696,-304.884362,0.00027,7]
[400727218,1767801044706,-304.884362,0.00027,7]
[400727220,1767801044715,-151.0,0.00027,7]
[400727222,1767801044724,-151.0,0.00027,7]
[400727224,1767801044734,-151.0,0.00027,7]
[400727226,1767801044743,-151.0,0.00027,7]
[400727228,1767801044752,-243.866483,0.00027,7]
[400727230,1767801044762,-151.0,0.00027,7]
[400727232,1767801044771,-151.0,0.00027,7]
[400727234,1767801044781,-243.866483,0.00027,7]
[400727236,1767801044790,-151.0,0.00027,7]
[400727238,1767801044800,-243.866483,0.00027,7]
[400727240,1767801044809,-243.866483,0.00027,7]
[400727242,1767801044818,-151.0,0.00027,7]
[400727244,1767801044827,-151.0,0.00027,7]
[400727246,1767801044837,-1041.66666667,0.00027,3]
[400727248,1767801044845,-151.0,0.00027,7]
[400727250,1767801044855,-151.0,0.00027,7]
[400727252,1767801044864,-151.0,0.00027,7]
[400727254,1767801044873,-151.0,0.00027,7]
[400727256,1767801044882,-151.0,0.00027,7]
[400727258,1767801044892,-151.0,0.00027,7]
[400727260,1767801044901,-151.0,0.00027,7]
[400727262,1767801044910,-237.212667,0.00027,7]
[400727264,1767801044919,-151.0,0.00027,7]
[400727266,1767801044928,-151.0,0.00027,7]
[400727268,1767801044937,-151.0,0.00027,7]
[400727269,1767801044949,-151.0,0.00027,7]
[400727271,1767801044958,-151.0,0.00027,7]
[400727273,1767801044968,-151.0,0.00027,7]
[400727275,1767801044977,-151.0,0.00027,7]
[400727277,1767801044990,-151.0,0.00027,7]
[400727279,1767801044999,-151.0,0.00027,7]
[400727281,1767801045008,-151.0,0.00027,7]
[400727283,1767801045017,-151.0,0.00027,7]
[400727285,1767801045026,-300.0,0.00027,7]
[400727287,1767801045035,-300.0,0.00027,7]
[400727289,1767801045045,-300.0,0.00027,7]
[400727291,1767801045054,-300.0,0.00027,7]
[400727293,1767801045064,-193.081788,0.00027,7]
[400727295,1767801045073,-151.0,0.00027,7]
[400727297,1767801045082,-151.0,0.00027,7]
[400727299,1767801045091,-151.0,0.00027,7]
[400727301,1767801045099,-205.41447394,0.00027,2]
[400727303,1767801045109,-151.0,0.00027,7]
[400727305,1767801045119,-5000.0,0.00027013,2]
[400727307,1767801045128,-15829.69,0.000271,2]
[400727309,1767801045139,-411.0,0.00027185,7]
[400727311,1767801045149,-1000.0,0.00027258,7]
[400727313,1767801045158,-1387.04018235,0.00027297,2]
[400727315,1767801045168,-1000.0,0.00027345,7]
[400727317,1767801045179,-150.0,0.0002739,2]
[400727319,1767801045188,-500.0,0.00027397,2]
[400727321,1767801045200,-500.0,0.00027397,2]
[400727323,1767801045209,-151.0,0.00027397,7]
[400727325,1767801045222,-151.0,0.00027397,7]
[400727327,1767801045231,-151.0,0.00027397,7]
[400727329,1767801045240,-411.68091884,0.00027397,2]
[400727330,1767801045250,-482.03771904,0.00027397,2]
[400727332,1767801045259,-500.0,0.00027397,2]
[400727335,1767801045269,-500.0,0.00027397,2]
[400727336,1767801045278,-500.0,0.00027397,2]
[400727338,1767801045288,-276.07693905,0.00027397,2]
[400727340,1767801045297,-500.0,0.00027397,2]
[400727342,1767801045307,-500.0,0.00027397,2]
[400727344,1767801045316,-343.357016,0.00027397,2]
[400727346,1767801045325,-459.12,0.00027397,2]
[400727348,1767801045334,-500.0,0.00027397,2]
[400727350,1767801045343,-488.58553069,0.00027397,2]
[400727352,1767801045352,-277.779251,0.00027397,2]
[400727355,1767801045362,-500.0,0.00027397,2]
[400727357,1767801045372,-617.55279622,0.00027397,2]
[400727358,1767801045381,-419.07810872,0.00027397,2]
[400727360,1767801045390,-500.0,0.00027397,2]
[400727362,1767801045399,-500.0,0.00027397,2]
[400727364,1767801045408,-500.0,0.00027397,2]
[400727366,1767801045417,-500.0,0.00027397,2]
[400727368,1767801045426,-500.0,0.00027397,2]
[400727370,1767801045436,-500.0,0.00027397,2]
[400727372,1767801045447,-497.79664648,0.00027397,2]
[400727374,1767801045456,-277.01965279,0.00027397,2]
[400727376,1767801045465,-500.0,0.00027397,2]
[400727378,1767801045474,-500.0,0.00027397,2]
[400727380,1767801045483,-492.19266173,0.00027397,2]
[400727382,1767801045492,-500.0,0.00027397,2]
[400727384,1767801045501,-500.0,0.00027397,2]
[400727386,1767801045511,-500.0,0.00027397,2]
[400727388,1767801045520,-500.0,0.00027397,2]
[400727390,1767801045529,-500.0,0.00027397,2]
[400727392,1767801045539,-500.0,0.00027397,2]
[400727394,1767801045548,-500.0,0.00027397,2]
[400727396,1767801045557,-500.0,0.00027397,2]
[400727398,1767801045567,-200.69574063,0.00027397,2]
[400727400,1767801045576,-500.0,0.00027397,2]
[400727402,1767801045585,-500.0,0.00027397,2]
[400727404,1767801045594,-502.36418177,0.00027397,2]
[400727406,1767801045604,-500.0,0.00027397,2]
[400727408,1767801045613,-500.0,0.00027397,2]
[400727410,1767801045623,-500.0,0.00027397,2]
[400727411,1767801045631,-512.18746411,0.00027397,2]
[400727413,1767801045641,-500.0,0.00027397,2]
[400727415,1767801045650,-165.7,0.00027397,7]
[400727418,1767801045660,-500.0,0.00027397,2]
[400727420,1767801045670,-500.0,0.00027397,2]
[400727422,1767801045679,-165.7,0.00027397,7]
[400727424,1767801045689,-165.7,0.00027397,7]
[400727426,1767801045700,-165.7,0.00027397,7]
[400727427,1767801045710,-500.0,0.00027397,2]
[400727430,1767801045719,-355.05083788,0.00027397,2]
[400727432,1767801045728,-371.20529437,0.00027397,2]
[400727434,1767801045738,-500.0,0.00027397,2]
[400727436,1767801045747,-536.59529358,0.00027397,2]
[400727438,1767801045757,-500.0,0.00027397,2]
[400727440,1767801045766,-500.0,0.00027397,2]
[400727442,1767801045776,-275.89701196,0.00027397,2]
[400727444,1767801045785,-500.0,0.00027397,2]
[400727446,1767801045795,-489.4825677,0.00027397,2]
[400727447,1767801045804,-492.83964034,0.00027397,2]
[400727448,1767801045813,-244.48670359,0.00027397,2]
[400727450,1767801045823,-500.0,0.00027397,2]
[400727451,1767801045832,-500.0,0.00027397,2]
[400727452,1767801045842,-500.0,0.00027397,2]
[400727453,1767801045851,-472.0779569,0.00027397,2]
[400727455,1767801045860,-500.0,0.00027397,2]
[400727456,1767801045869,-500.0,0.00027397,2]
[400727457,1767801045879,-151.0,0.00027397,7]
[400727458,1767801045888,-500.0,0.00027397,2]
[400727459,1767801045898,-500.0,0.00027397,2]
[400727462,1767801045907,-151.0,0.00027397,7]
[400727463,1767801045917,-500.0,0.00027397,2]
[400727464,1767801045926,-181.252366,0.00027397,7]
[400727465,1767801045935,-500.0,0.00027397,2]
[400727466,1767801045945,-500.0,0.00027397,2]
[400727467,1767801045955,-500.0,0.00027397,2]
[400727468,1767801045964,-500.0,0.00027397,2]
[400727469,1767801045973,-500.0,0.00027397,2]
[400727470,1767801045982,-500.0,0.00027397,2]
[400727471,1767801045992,-500.0,0.00027397,2]
[400727472,1767801046001,-500.0,0.00027397,2]
[400727473,1767801046011,-572.76326727,0.00027397,2]
[400727474,1767801046020,-500.0,0.00027397,2]
[400727475,1767801046030,-448.47784493,0.00027397,2]
[400727476,1767801046039,-354.03723532,0.00027397,2]
[400727477,1767801046049,-500.0,0.00027397,2]
[400727478,1767801046058,-348.69291317,0.00027397,2]
[400727479,1767801046067,-506.15978028,0.00027397,2]
[400727480,1767801046077,-204.4507679,0.00027397,2]
[400727482,1767801046087,-500.0,0.00027397,2]
[400727483,1767801046096,-500.0,0.00027397,2]
[400727484,1767801046106,-151.0,0.00027397,7]
[400727485,1767801046115,-151.0,0.00027397,7]
[400727486,1767801046124,-500.0,0.00027397,2]
[400727487,1767801046134,-500.0,0.00027397,2]
[400727488,1767801046146,-151.0,0.00027397,7]
[400727489,1767801046156,-500.0,0.00027397,2]
[400727490,1767801046166,-1000.0,0.00027397,2]
[400727491,1767801046176,-500.0,0.00027397,2]
[400727492,1767801046186,-500.0,0.00027397,2]
[400727493,1767801046196,-151.0,0.00027397,7]
[400727494,1767801046206,-279.168614,0.00027397,7]
[400727495,1767801046216,-500.0,0.00027397,2]
[400727496,1767801046226,-500.0,0.00027397,2]
[400727497,1767801046235,-500.0,0.00027397,2]
[400727498,1767801046245,-563.61353423,0.00027397,2]
[400727499,1767801046254,-546.87196648,0.00027397,2]
[400727500,1767801046263,-266.0311333,0.00027397,2]
[400727501,1767801046274,-500.0,0.00027397,2]
[400727502,1767801046285,-574.83927761,0.00027397,2]
[400727503,1767801046294,-500.0,0.00027397,2]
[400727504,1767801046304,-500.0,0.00027397,2]
[400727505,1767801046314,-500.0,0.00027397,2]
[400727506,1767801046325,-461.56079082,0.00027397,2]
[400727507,1767801046335,-500.0,0.00027397,2]
[400727508,1767801046345,-285.44153399,0.00027397,2]
[400727509,1767801046355,-500.0,0.00027397,2]
[400727510,1767801046365,-500.0,0.00027397,2]
[400727511,1767801046375,-518.82361923,0.00027397,2]
[400727512,1767801046387,-500.0,0.00027397,2]
[400727513,1767801046398,-500.0,0.00027397,2]
[400727514,1767801046408,-500.0,0.00027397,2]
[400727515,1767801046419,-500.0,0.00027397,2]
[400727516,1767801046429,-500.0,0.00027397,2]
[400727517,1767801046439,-500.0,0.00027397,2]
[400727518,1767801046451,-500.0,0.00027397,2]
[400727519,1767801046462,-296.57482557,0.00027397,2]
[400727520,1767801046472,-393.32959088,0.00027397,2]
[400727521,1767801046482,-274.78199584,0.00027397,2]
[400727522,1767801046492,-500.0,0.00027397,2]
[400727523,1767801046502,-500.0,0.00027397,2]
[400727524,1767801046512,-151.0,0.00027397,7]
[400727525,1767801046522,-565.35155134,0.00027397,2]
[400727526,1767801046532,-151.0,0.00027397,7]
[400727527,1767801046541,-500.0,0.00027397,2]
[400727528,1767801046551,-151.0,0.00027397,7]
[400727529,1767801046560,-421.02480079,0.00027397,2]
[400727530,1767801046569,-533.03275713,0.00027397,2]
[400727531,1767801046579,-500.0,0.00027397,2]
[400727532,1767801046588,-378.27229026,0.00027397,2]
[400727533,1767801046599,-500.0,0.00027397,2]
[400727534,1767801046608,-500.0,0.00027397,2]
[400727535,1767801046618,-287.99941463,0.00027397,2]
[400727536,1767801046627,-500.0,0.00027397,2]
[400727537,1767801046637,-567.74134329,0.00027397,2]
[400727538,1767801046646,-500.0,0.00027397,2]
[400727539,1767801046656,-571.86771589,0.00027397,2]
[400727540,1767801046666,-271.44586454,0.00027397,2]
[400727541,1767801046675,-500.0,0.00027397,2]
[400727542,1767801046685,-323.54612143,0.00027397,2]
[400727543,1767801046696,-500.0,0.00027397,2]
[400727544,1767801046706,-459.71283558,0.00027397,2]
[400727545,1767801046715,-151.0,0.00027397,7]
[400727546,1767801046724,-487.15250721,0.00027397,2]
[400727547,1767801046734,-151.0,0.00027397,7]
[400727548,1767801046743,-257.75144665,0.00027397,2]
[400727549,1767801046752,-538.91545747,0.00027397,2]
[400727550,1767801046762,-151.0,0.00027397,7]
[400727551,1767801046771,-500.0,0.00027397,2]
[400727552,1767801046780,-500.0,0.00027397,2]
[400727553,1767801046790,-302.57630642,0.00027397,2]
[400727554,1767801046799,-399.37825281,0.00027397,2]
[400727555,1767801046808,-567.9849075,0.00027397,2]
[400727556,1767801046818,-151.0,0.00027397,7]
[400727557,1767801046827,-318.72988081,0.00027397,2]
[400727558,1767801046836,-248.43549286,0.00027397,2]
[400727559,1767801046846,-500.0,0.00027397,2]
[400727560,1767801046856,-248.88132045,0.00027397,2]
[400727561,1767801046866,-500.0,0.00027397,2]
[400727562,1767801046875,-509.29429867,0.00027397,2]
[400727563,1767801046885,-500.0,0.00027397,2]
[400727564,1767801046894,-500.0,0.00027397,2]
[400727565,1767801046903,-500.0,0.00027397,2]
[400727566,1767801046913,-500.0,0.00027397,2]
[400727567,1767801046922,-500.0,0.00027397,2]
[400727568,1767801046930,-500.0,0.00027397,2]
[400727569,1767801046940,-500.0,0.00027397,2]
[400727570,1767801046950,-195.03199849,0.00027397,2]
[400727571,1767801046960,-500.0,0.00027397,2]
[400727572,1767801046969,-167.701236,0.00027397,7]
[400727573,1767801046979,-164.8466183,0.00027397,2]
[400727574,1767801046988,-221.6668596,0.00027397,2]
[400727575,1767801046998,-500.0,0.00027397,2]
[400727576,1767801047007,-500.0,0.00027397,2]
[400727577,1767801047017,-297.211329,0.00027397,7]
[400727578,1767801047027,-208.00138522,0.00027397,2]
[400727579,1767801047037,-457.91232299,0.00027397,2]
[400727580,1767801047046,-500.0,0.00027397,2]
[400727581,1767801047055,-480.41975781,0.00027397,2]
[400727582,1767801047065,-167.619488,0.00027397,7]
[400727583,1767801047074,-500.0,0.00027397,2]
[400727584,1767801047083,-500.0,0.00027397,2]
[400727585,1767801047093,-500.0,0.00027397,2]
[400727586,1767801047102,-167.619488,0.00027397,7]
[400727587,1767801047111,-167.619488,0.00027397,7]
[400727588,1767801047121,-397.00088279,0.00027397,2]
[400727589,1767801047130,-167.619488,0.00027397,7]
[400727590,1767801047143,-200.0,0.00027397,2]
[400727591,1767801047153,-3058.01774829,0.00027397,2]
[400727592,1767801047162,-500.0,0.00027397,2]
[400727593,1767801047172,-1000.0,0.00027397,2]
[400727594,1767801047182,-471.39829619,0.00027397,2]
[400727595,1767801047192,-505.81393525,0.00027397,2]
[400727596,1767801047204,-500.0,0.00027397,2]
[400727597,1767801047217,-185.72944567,0.00027397,2]
[400727598,1767801047227,-500.0,0.00027397,2]
[400727599,1767801047239,-315.73155468,0.00027397,2]
[400727600,1767801047248,-500.0,0.00027397,2]
[400727601,1767801047259,-593.0958547,0.00027397,2]
[400727602,1767801047268,-500.0,0.00027397,2]